[Event "1000GM NY Winter IM-C 2024"]
[Site "New York"]
[Date "2024.01.13"]
[Round "4.1"]
[White "Yudasin, Leonid"]
[Black "Goktepe, Derin"]
[Result "1/2-1/2"]
[ECO "C54"]
[WhiteElo "2353"]
[BlackElo "2187"]
[Annotator "ChessBase"]
[PlyCount "43"]
[EventDate "2024.01.10"]
[EventType "swiss"]
[EventCountry "USA"]
[SourceTitle "playchess.com"]
[Source "ChessBase"]
[SourceQuality "1"]
[TimeControl "5400+30"]

1. e4 {[%emt 0:00:03]} e5 {[%emt 0:00:16]} 2. Nf3 {[%emt 0:00:30]} Nc6 {[%emt 0:00:17]} 3. Bc4 {[%emt 0:00:34]} Bc5 {[%emt 0:00:19]} 4. c3 {[%emt 0:01:19]} Nf6 {[%emt 0:00:27]} 5. b4 {[%emt 0:00:05]} Be7 {[%emt 0:02:20]} 6. d3 {[%emt 0:00:39]} d5 {[%emt 0:01:22]} 7. exd5 {[%emt 0:04:36]} Nxd5 {[%emt 0:00:17]} 8. O-O {[%emt 0:03:37]} O-O {[%emt 0:01:13]} 9. b5 {[%emt 0:09:49]} Na5 {[%emt 0:00:55]} 10. Bxd5 {[%emt 0:05:27]} Qxd5 {[%emt 0:00:36]} 11. c4 {[%emt 0:00:04]} Qd8 {[%emt 0:06:43]} 12. Bd2 {[%emt 0:02:11]} c5 {[%emt 0:15:43]} 13. Nxe5 {[%emt 0:10:08]} Bf6 {[%emt 0:02:06]} 14. Bc3 {[%emt 0:05:54]} Bxe5 {[%emt 0:14:03]} 15. Bxe5 {[%emt 0:01:44]} Bf5 {[%emt 0:00:52]} 16. Bc3 {[%emt 0:02:57]} b6 {[%emt 0:01:26]} 17. Nd2 {[%emt 0:06:09]} Qxd3 {[%emt 0:10:38]} 18. Bxa5 {[%emt 0:06:39]} bxa5 {[%emt 0:00:13]} 19. Nb3 {[%emt 0:37:35]} Qxc4 {[%emt 0:40:14]} 20. Rc1 Qxb5 {[%emt 0:00:30]} 21. Rxc5 {[%emt 0:01:00]} Qd3 22. Rxa5 1/2-1/2

[Event "1000GM NY Winter IM-C 2024"]
[Site "New York"]
[Date "2024.01.13"]
[Round "4.2"]
[White "Hajnal, Zoltan"]
[Black "Yoo, Eugene"]
[Result "1-0"]
[ECO "B32"]
[WhiteElo "2383"]
[BlackElo "2168"]
[Annotator "TA"]
[PlyCount "98"]
[EventDate "2024.01.10"]
[EventType "swiss"]
[EventCountry "USA"]
[SourceTitle "playchess.com"]
[Source "ChessBase"]
[SourceQuality "1"]
[TimeControl "5400+30"]

{[%evp 14,98,18,18,22,24,20,21,19,16,21,19,12,13,11,10,14,5,6,0,0,-12,0,-16,-10,-21,-22,-8,-8,-10,27,22,27,0,183,74,191,186,180,11,13,32,21,33,27,29,71,82,342,314,500,394,388,383,321,125,279,279,533,526,1565,1568,1427,843,1680,1626,2304,2135,12812,5531,29974,29976,29975,29977,29980,29981,29983,29984,29984,29985,29985,29985,29981,29981,29980,29981,29990]} 1. e4 {[%emt 0:06:51]} c5 {[%emt 0:00:05]} 2. Nf3 {[%emt 0:00:06][%cal Bg1f3,Bf3d4,Bd4b5,Bb5a3,Ba3c4][%mdl 32]} Nc6 {[%emt 0:00:05]} 3. d4 {[%emt 0:00:05]} cxd4 {[%emt 0:00:04]} 4. Nxd4 {[%emt 0:00:05]} e5 {[%emt 0:00:12]} 5. Nb5 {[%emt 0:00:05]} d6 {[%emt 0:00:04]} 6. N1c3 {[%emt 0:00:06]} a6 {[%emt 0:00:09]} 7. Na3 {[%emt 0:00:05]} Be6 {[%emt 0:00:05]} 8. Nc4 {[%emt 0:00:16]} Rb8 {[%emt 0:00:10]} 9. Ne3 {[%emt 0:00:53]} Nf6 {[%emt 0:00:19]} 10. g3 {[%emt 0:00:10]} h5 {[%emt 0:01:58] The position is equal.} 11. h4 {[%emt 0:06:13]} Nd4 {[%emt 0:00:01]} 12. Bg2 {[%emt 0:00:26]} g6 {[%emt 0:00:05]} 13. O-O {[%emt 0:00:17]} Bh6 {[%emt 0:00:02]} 14. Ncd5 {[%emt 0:01:02]} Nxd5 {[%emt 0:05:54]} 15. exd5 {[%emt 0:01:33]} Bd7 {[%emt 0:06:19]} 16. c3 {[%emt 0:03:43]} Bxe3 {[%emt 0:02:33]} 17. fxe3 {[%emt 0:02:44]} (17. Bxe3 $5 Nf5 $8 18. Bg5 $11) 17... Bg4 $1 {[%emt 0:27:39]} 18. Qe1 {[%emt 0:01:40]} Ne2+ {[%emt 0:02:35]} 19. Kh2 {[%emt 0:00:04]} Nxc1 {[%emt 0:04:20]} 20. Rxc1 {[%emt 0:00:27]} O-O {[%emt 0:01:08]} 21. c4 {[%emt 0:04:21]} Qb6 {[%emt 0:12:25]} 22. b4 {[%emt 0:01:54]} Rbc8 {[%emt 0:00:06]} 23. Rf6 {[%emt 0:06:02][%cal Oc4c5]} Rfd8 $2 {[%emt 0:03:31] [#]} (23... Qd8 $11 24. Qf2 b6) 24. c5 {[%emt 0:06:01]} (24. Qf2 $1 $18 {[%mdl 512] and White stays clearly on top. Rf1 would now be deadly.} Rf8 25. Rf1) 24... Qc7 {[%emt 0:00:06] [#]} (24... Qb5 $16) 25. Qf2 $1 $18 {[%emt 0:00:45]} Qe7 {[%emt 0:01:49] [#]} 26. cxd6 $2 {[%emt 0:03:04]} (26. Rf1 $1 $18 {[%cal Rf6f7]} Rd7 (26... Bf5 $2 27. Rxf5 gxf5 28. Qxf5 $18) 27. a4) 26... Rxd6 $11 {[%emt 0:00:34]} 27. Rxc8+ {[%emt 0:00:09]} Bxc8 {[%emt 0:00:01]} 28. Rxd6 {[%emt 0:00:08]} Qxd6 $18 {[%emt 0:00:02][%mdl 4096] Endgame. KQB-KQB} 29. Qc2 $36 {[%emt 0:00:07][%mdl 2048] White is more active.} Bd7 {[%emt 0:14:14][%cal Og8f8]} 30. Qc5 {[%emt 0:10:48] Black is now going downhill.} Qxc5 {[%emt 0:00:02][%mdl 8192]} (30... Qf6 $16) 31. bxc5 $16 {[%emt 0:00:05] d6 is the strong threat. KB-KB} f5 {[%emt 0:00:26]} (31... Kf8 $142 32. d6 Bc8) 32. e4 {[%emt 0:00:17]} Kf7 {[%emt 0:02:52]} 33. Kg1 {[%emt 0:02:52]} Kf6 {[%emt 0:08:55]} 34. Bh3 $2 {[%emt 0:09:45]} (34. exf5 $18 {and the rest is easy.} gxf5 35. Bf3) 34... Ba4 $2 {[%emt 0:01:50]} (34... Ke7 $16 {might work better.} 35. Bg2 Kd8 36. exf5 gxf5) 35. Kf2 $18 {[%emt 0:01:57]} Bc2 $2 {[%emt 0:00:53]} (35... Bd7 {was worth a try.} 36. Ke2 Bc8) 36. Bg2 {[%emt 0:07:00]} f4 {[%emt 0:01:16]} 37. gxf4 {[%emt 0:00:14]} exf4 {[%emt 0:00:03] [#]} 38. e5+ $1 {[%emt 0:00:06][%mdl 512]} Kxe5 {[%emt 0:00:55]} 39. d6 {[%emt 0:00:05][%cal Od6d7] And now d7! would win.} Bf5 {[%emt 0:02:49]} 40. Bxb7 {[%emt 0:00:20]} a5 {[%emt 0:00:05]} 41. Bc6 {[%emt 0:01:15] White threatens d7 and mate.} Kf6 {[%emt 0:01:56]} 42. Kf3 {[%emt 0:00:10] White mates.} Be6 {[%emt 0:01:12]} 43. a3 {[%emt 0:00:13]} Bg4+ {[%emt 0:00:09]} 44. Kxf4 {[%emt 0:00:05]} Bf5 {[%emt 0:00:03]} 45. Bd5 {[%emt 0:01:45]} Bh3 {[%emt 0:00:19]} 46. c6 {[%emt 0:00:58]} Bg4 {[%emt 0:00:07]} 47. Bc4 {[%emt 0:00:54]} Bh3 {[%emt 0:00:12]} 48. Ba6 {[%emt 0:00:16]} Ke6 {[%emt 0:00:08]} 49. Bc8+ {[%emt 0:00:18]} Kd5 {[%emt 0:04:13] Weighted Error Value: White=0.19 (very precise) /Black=0.48.  Loses game:     	---       	Black=2      Missed win:     	White=2     	---        Mistake:       	White=1     	Black=4      Inaccurate:     	White=1     	Black=3      OK:         	White=13    	Black=13     Best:        	White=2     	---        Strong:       	---       	Black=1} 1-0

[Event "1000GM NY Winter IM-C 2024"]
[Site "New York"]
[Date "2024.01.13"]
[Round "4.3"]
[White "Pressman, Leif"]
[Black "Chabris, Christopher"]
[Result "0-1"]
[ECO "E00"]
[WhiteElo "2258"]
[BlackElo "2078"]
[Annotator "ChessBase"]
[PlyCount "58"]
[EventDate "2024.01.10"]
[EventType "swiss"]
[EventCountry "USA"]
[SourceTitle "playchess.com"]
[Source "ChessBase"]
[SourceQuality "1"]
[TimeControl "5400+30"]

1. d4 {[%emt 0:00:29]} Nf6 {[%emt 0:00:08]} 2. c4 {[%emt 0:00:05]} e6 {[%emt 0:00:05]} 3. g3 {[%emt 0:00:14]} Bb4+ {[%emt 0:00:12]} 4. Bd2 {[%emt 0:00:11]} c5 {[%emt 0:00:14]} 5. Bxb4 {[%emt 0:01:08]} cxb4 {[%emt 0:00:09]} 6. Bg2 {[%emt 0:01:21]} O-O {[%emt 0:00:18]} 7. e3 {[%emt 0:02:12]} d6 {[%emt 0:03:24]} 8. Ne2 {[%emt 0:00:37]} a5 {[%emt 0:01:49]} 9. O-O {[%emt 0:00:48]} e5 {[%emt 0:01:10]} 10. a3 {[%emt 0:02:39]} Na6 {[%emt 0:03:15]} 11. h3 {[%emt 0:03:19]} h5 {[%emt 0:05:19]} 12. Nd2 {[%emt 0:08:49]} Qe7 {[%emt 0:04:12]} 13. Nb3 {[%emt 0:08:02]} Qc7 {[%emt 0:07:32]} 14. Rc1 {[%emt 0:04:36]} Be6 {[%emt 0:08:33]} 15. c5 {[%emt 0:03:58]} exd4 {[%emt 0:17:37]} 16. cxd6 {[%emt 0:03:17]} Qxd6 {[%emt 0:01:19]} 17. Nxa5 {[%emt 0:03:27]} Qb6 {[%emt 0:12:11]} 18. axb4 {[%emt 0:17:39]} dxe3 {[%emt 0:10:52]} 19. Nxb7 {[%emt 0:07:44]} exf2+ {[%emt 0:03:17]} 20. Rxf2 {[%emt 0:02:47]} Nxb4 {[%emt 0:00:46]} 21. Nd4 {[%emt 0:08:14]} Rac8 {[%emt 0:04:40]} 22. Nxe6 {[%emt 0:05:36]} fxe6 {[%emt 0:00:48]} 23. Rxc8 {[%emt 0:02:05]} Rxc8 {[%emt 0:00:35]} 24. Qf3 {[%emt 0:08:17]} Rc2 {[%emt 0:03:20]} 25. g4 {[%emt 0:02:24]} Nd3 {[%emt 0:00:44]} 26. Kh2 {[%emt 0:01:19]} Qxf2 {[%emt 0:00:40]} 27. Qxf2 {[%emt 0:00:26]} Rxf2 {[%emt 0:00:20]} 28. Kg3 {[%emt 0:00:15]} Rxb2 {[%emt 0:00:40]} 29. Nd8 {[%emt 0:00:27]} h4+ {[%emt 0:10:51]} 0-1

[Event "1000GM NY Winter IM-C 2024"]
[Site "New York"]
[Date "2024.01.13"]
[Round "4.4"]
[White "Ho, Carter"]
[Black "Martin Del Campo Cardenas, Roberto Abel"]
[Result "0-1"]
[ECO "B80"]
[WhiteElo "2180"]
[BlackElo "2205"]
[Annotator "ChessBase"]
[PlyCount "66"]
[EventDate "2024.01.10"]
[EventType "swiss"]
[EventCountry "USA"]
[SourceTitle "playchess.com"]
[Source "ChessBase"]
[SourceQuality "1"]
[TimeControl "5400+30"]

1. e4 {[%emt 0:00:20]} c5 {[%emt 0:00:05]} 2. Nf3 {[%emt 0:00:03]} d6 {[%emt 0:01:03]} 3. d4 {[%emt 0:00:18]} cxd4 {[%emt 0:00:07]} 4. Nxd4 {[%emt 0:00:05]} Nf6 {[%emt 0:00:03]} 5. Nc3 {[%emt 0:00:03]} a6 {[%emt 0:00:21]} 6. f3 {[%emt 0:00:19]} e6 {[%emt 0:01:11]} 7. Be3 {[%emt 0:00:08]} Nbd7 {[%emt 0:00:07]} 8. Qd2 {[%emt 0:00:07]} b5 {[%emt 0:00:05]} 9. O-O-O {[%emt 0:02:01]} Bb7 {[%emt 0:00:27]} 10. g4 {[%emt 0:00:23]} Nb6 {[%emt 0:05:09]} 11. g5 {[%emt 0:03:23]} Nfd7 {[%emt 0:00:17]} 12. Qf2 {[%emt 0:02:17]} Rc8 {[%emt 0:00:49]} 13. Nb1 {[%emt 0:01:54]} d5 {[%emt 0:10:38]} 14. f4 {[%emt 0:04:46]} Qc7 {[%emt 0:22:38]} 15. e5 {[%emt 0:03:19]} g6 {[%emt 0:06:41]} 16. h4 {[%emt 0:03:27]} Nc4 {[%emt 0:06:40]} 17. h5 {[%emt 0:02:37]} Rg8 {[%emt 0:03:02]} 18. hxg6 {[%emt 0:03:19]} hxg6 {[%emt 0:00:10]} 19. Rh7 {[%emt 0:01:07]} Nxe3 {[%emt 0:05:12]} 20. Qxe3 {[%emt 0:00:08]} Bc5 {[%emt 0:00:04]} 21. Nc3 {[%emt 0:03:39]} b4 {[%emt 0:04:38]} 22. Nce2 {[%emt 0:06:57]} a5 {[%emt 0:00:07]} 23. Kb1 {[%emt 0:18:02]} Ba6 {[%emt 0:01:59]} 24. Bh3 {[%emt 0:10:28]} Bxe2 {[%emt 0:03:34]} 25. Qxe2 {[%emt 0:00:08]} Bxd4 {[%emt 0:00:26]} 26. Rxd4 {[%emt 0:00:03]} Ke7 {[%emt 0:01:11]} 27. Rxd5 {[%emt 0:08:35]} Nf8 {[%emt 0:01:53]} 28. f5 {[%emt 0:04:57]} gxf5 {[%emt 0:04:15]} 29. Rh6 {[%emt 0:00:21]} exd5 {[%emt 0:00:23]} 30. e6 {[%emt 0:00:20]} fxe6 {[%emt 0:03:51]} 31. Bxf5 {[%emt 0:00:19]} Rxg5 {[%emt 0:02:51]} 32. Rxe6+ {[%emt 0:01:02]} Kf7 {[%emt 0:01:01]} 33. Bg4 {[%emt 0:00:11]} Rxg4 {[%emt 0:01:01]} 0-1

[Event "1000GM NY Winter IM-C 2024"]
[Site "New York"]
[Date "2024.01.13"]
[Round "4.5"]
[White "Tanenbaum, Zachary"]
[Black "Rohde, Michael"]
[Result "1-0"]
[ECO "B22"]
[WhiteElo "2272"]
[BlackElo "2333"]
[Annotator "RC"]
[PlyCount "79"]
[EventDate "2024.01.10"]
[EventType "swiss"]
[EventCountry "USA"]
[SourceTitle "playchess.com"]
[Source "ChessBase"]
[SourceQuality "1"]
[TimeControl "5400+30"]

1. e4 {[%emt 0:32:54]} c5 {[%emt 0:00:30]} 2. c3 {[%emt 0:00:02]} g6 {[%emt 0:01:31]} 3. d4 {[%emt 0:00:05]} cxd4 {[%emt 0:00:08]} 4. cxd4 {[%emt 0:00:02]} d5 {[%emt 0:00:05]} 5. e5 {[%emt 0:00:42]} Bg7 {[%emt 0:00:21]} 6. Nc3 {[%emt 0:00:17]} Nc6 {[%emt 0:00:06]} 7. Bf4 {[%emt 0:01:26]} f6 {[%emt 0:04:45]} 8. Bb5 {[%emt 0:06:17]} Nh6 {[%emt 0:03:51]} 9. exf6 {[%emt 0:10:42]} exf6 {[%emt 0:00:23]} 10. Qa4 {[%emt 0:08:52]} O-O {[%emt 0:09:50]} 11. Nxd5 {[%emt 0:02:28]} Kh8 {[%emt 0:10:06]} 12. Bxc6 {[%emt 0:13:38]} bxc6 {[%emt 0:00:18]} 13. Nc3 {[%emt 0:00:23]} g5 {[%emt 0:02:56]} 14. Bg3 {[%emt 0:01:09]} Qb6 {[%emt 0:05:01]} 15. Nge2 {[%emt 0:00:19]} Ba6 {[%emt 0:00:50]} 16. Qc2 {[%emt 0:02:13]} Rfe8 {[%emt 0:06:06]} 17. O-O {[%emt 0:01:29]} f5 {[%emt 0:00:48]} 18. Bd6 {[%emt 0:01:19]} Re6 {[%emt 0:03:19]} 19. Bc5 {[%emt 0:00:24]} Qc7 {[%emt 0:00:37]} 20. Rfe1 {[%emt 0:01:11]} Rae8 {[%emt 0:01:42]} 21. Qd2 {[%emt 0:01:49]} f4 {[%emt 0:07:34]} 22. h4 {[%emt 0:01:19]} f3 {[%emt 0:04:21]} 23. gxf3 {[%emt 0:05:10]} gxh4 {[%emt 0:01:08]} 24. Kh1 {[%emt 0:08:20]} Qf7 {[%emt 0:16:52]} 25. Ng1 {[%emt 0:00:00]} h3 {[%emt 0:00:50]} 26. Ne4 {[%emt 0:00:00]} h2 {[%emt 0:05:25]} 27. Kxh2 {[%emt 0:00:00]} Nf5 {[%emt 0:02:48]} 28. Ng5 {[%emt 0:00:00]} Qh5+ {[%emt 0:05:40]} 29. N1h3 {[%emt 0:00:00]} Bh6 {[%emt 0:03:32]} 30. Rxe6 {[%emt 0:00:00]} Rxe6 {[%emt 0:00:09]} 31. Qf4 {[%emt 0:00:14]} Nh4 {[%emt 0:01:24]} 32. Rg1 {[%emt 0:01:42]} Rg6 {[%emt 0:02:32]} 33. Qe5+ {[%emt 0:01:51]} Rg7 {[%emt 0:00:04]} 34. Bf8 {[%emt 0:00:35]} Nxf3+ {[%emt 0:00:49]} 35. Nxf3 {[%emt 0:00:06]} Qxe5+ {[%emt 0:00:26]} 36. Nxe5 {[%emt 0:00:04]} Rxg1 {[%emt 0:00:09]} 37. Nf7+ {[%emt 0:00:05]} Kg8 {[%emt 0:00:04]} 38. Nxh6+ {[%emt 0:00:05]} Kxf8 {[%emt 0:00:02]} 39. Nxg1 {[%emt 0:00:11]} Bc8 {[%emt 0:00:11]} 40. Kg3 {[%emt 0:00:13]} 1-0

[Event "1000GM NY Winter IM-C 2024"]
[Site "New York"]
[Date "2024.01.13"]
[Round "4.6"]
[White "Pagan, Jonathan"]
[Black "Almeida Saenz, Alfonso"]
[Result "1/2-1/2"]
[ECO "E01"]
[WhiteElo "2018"]
[BlackElo "2222"]
[Annotator "RC"]
[PlyCount "66"]
[EventDate "2024.01.10"]
[EventType "swiss"]
[EventCountry "USA"]
[SourceTitle "playchess.com"]
[Source "ChessBase"]
[SourceQuality "1"]
[TimeControl "5400+30"]

1. Nf3 {[%emt 0:00:03]} Nf6 {[%emt 0:00:36]} 2. g3 {[%emt 0:00:05]} c5 {[%emt 0:00:46]} 3. Bg2 {[%emt 0:00:07]} Nc6 {[%emt 0:00:07]} 4. O-O {[%emt 0:00:14]} d5 {[%emt 0:00:17]} 5. d4 {[%emt 0:00:08]} cxd4 {[%emt 0:03:17]} 6. Nxd4 {[%emt 0:00:06]} e6 {[%emt 0:00:14]} 7. c4 {[%emt 0:00:26]} Bc5 {[%emt 0:00:10]} 8. Nb3 {[%emt 0:00:10]} Be7 {[%emt 0:00:08]} 9. cxd5 {[%emt 0:10:51]} Nxd5 {[%emt 0:01:12]} 10. a3 {[%emt 0:03:00]} O-O {[%emt 0:00:21]} 11. Qc2 {[%emt 0:01:42]} Qc7 {[%emt 0:12:24]} 12. e4 {[%emt 0:02:49]} Ne5 {[%emt 0:03:40]} 13. Qxc7 {[%emt 0:02:06]} Nxc7 {[%emt 0:00:01]} 14. Bf4 {[%emt 0:01:44]} Bf6 {[%emt 0:00:30]} 15. Rd1 {[%emt 0:04:14]} b6 {[%emt 0:01:02]} 16. Bxe5 {[%emt 0:09:37]} Bxe5 {[%emt 0:00:02]} 17. f4 {[%emt 0:00:08]} Bxb2 {[%emt 0:00:57]} 18. Ra2 {[%emt 0:00:04]} Bf6 {[%emt 0:00:06]} 19. e5 {[%emt 0:00:03]} Be7 {[%emt 0:00:07]} 20. Bxa8 {[%emt 0:00:05]} Nxa8 {[%emt 0:00:01]} 21. Rc2 {[%emt 0:01:10]} f6 {[%emt 0:00:06]} 22. exf6 {[%emt 0:00:20]} Bxf6 {[%emt 0:00:03]} 23. Nc3 {[%emt 0:01:46]} Bb7 {[%emt 0:02:11]} 24. Rd7 {[%emt 0:09:01]} Bc6 {[%emt 0:01:13]} 25. Rd6 {[%emt 0:08:24]} Bb7 {[%emt 0:00:27]} 26. Nb5 {[%emt 0:05:07]} Bd5 {[%emt 0:01:40]} 27. Rxd5 {[%emt 0:09:58]} exd5 {[%emt 0:00:08]} 28. Nxa7 {[%emt 0:00:04]} b5 {[%emt 0:00:48]} 29. Nxb5 {[%emt 0:00:29]} Nb6 {[%emt 0:00:02]} 30. Kf2 {[%emt 0:05:48]} Rb8 {[%emt 0:00:12]} 31. N3d4 {[%emt 0:02:29]} Ra8 {[%emt 0:00:44]} 32. Rc6 {[%emt 0:08:02]} Nc4 {[%emt 0:00:23]} 33. Rc5 {[%emt 0:00:43]} Nxa3 {[%emt 0:03:19]} 1/2-1/2

[Event "1000GM NY Winter IM-C 2024"]
[Site "New York"]
[Date "2024.01.13"]
[Round "4.7"]
[White "Gaw, Chloe"]
[Black "Kovalchuk, Igor"]
[Result "1/2-1/2"]
[ECO "D36"]
[WhiteElo "1928"]
[BlackElo "2030"]
[Annotator "RC"]
[PlyCount "52"]
[EventDate "2024.01.10"]
[EventType "swiss"]
[EventCountry "USA"]
[SourceTitle "playchess.com"]
[Source "ChessBase"]
[SourceQuality "1"]
[TimeControl "5400+30"]

1. d4 {[%emt 1:31:00]} d5 {[%emt 0:00:41]} 2. c4 {[%emt 0:00:00]} e6 {[%emt 0:00:15]} 3. Nc3 {[%emt 0:00:00]} Nf6 {[%emt 0:00:10]} 4. cxd5 {[%emt 0:00:00]} exd5 {[%emt 0:00:09]} 5. Bg5 {[%emt 0:00:00]} c6 {[%emt 0:00:20]} 6. e3 {[%emt 0:00:00]} Be7 {[%emt 0:00:49]} 7. Bd3 {[%emt 0:00:00]} h6 {[%emt 0:11:17]} 8. Bh4 {[%emt 0:00:00]} Nbd7 {[%emt 0:06:34]} 9. Qc2 {[%emt 0:00:00]} O-O {[%emt 0:04:12]} 10. Nge2 {[%emt 0:00:00]} b5 {[%emt 0:03:10]} 11. O-O {[%emt 0:00:00]} a5 {[%emt 0:03:17]} 12. Rac1 {[%emt 0:00:00]} Ba6 {[%emt 0:07:11]} 13. Rfd1 {[%emt 0:00:00]} b4 {[%emt 0:10:12]} 14. Bxa6 {[%emt 0:00:00]} bxc3 {[%emt 0:17:00]} 15. Bd3 {[%emt 0:00:00]} cxb2 {[%emt 0:00:58]} 16. Qxb2 {[%emt 0:00:00]} c5 {[%emt 0:03:32]} 17. dxc5 {[%emt 0:00:00]} Nxc5 {[%emt 0:00:13]} 18. Bb1 {[%emt 0:00:00]} Rb8 {[%emt 0:03:57]} 19. Qc2 {[%emt 0:00:00]} Nce4 {[%emt 0:04:26]} 20. f3 {[%emt 0:00:00]} Ng5 {[%emt 0:00:56]} 21. Nf4 {[%emt 0:02:36]} Rb5 {[%emt 0:03:57]} 22. Qd3 {[%emt 0:04:09]} Qb6 {[%emt 0:01:50]} 23. Bf2 {[%emt 0:01:19]} Rb8 {[%emt 0:05:46]} 24. a4 {[%emt 0:00:58]} Rb3 {[%emt 0:00:32]} 25. Qf5 {[%emt 0:00:15]} Bc5 {[%emt 0:06:59]} 26. Kh1 {[%emt 0:00:54]} Re8 {[%emt 0:02:45]} 1/2-1/2

[Event "1000GM NY Winter IM-C 2024"]
[Site "New York"]
[Date "2024.01.13"]
[Round "4.8"]
[White "Mede, Istvan"]
[Black "Mou, Iris"]
[Result "1/2-1/2"]
[ECO "B15"]
[WhiteElo "2187"]
[BlackElo "2128"]
[Annotator "TA"]
[PlyCount "48"]
[EventDate "2024.01.10"]
[EventType "swiss"]
[EventCountry "USA"]
[SourceTitle "playchess.com"]
[Source "ChessBase"]
[SourceQuality "1"]
[TimeControl "5400+30"]

{[%evp 14,48,22,29,30,13,45,33,49,30,48,9,56,50,70,43,26,56,203,200,167,17,27,12,20,0,43,35,29,24,103,0,0,0,76,0,0]} 1. e4 {[%emt 0:03:15]} c6 {[%emt 0:00:10]} 2. d4 {[%emt 0:00:07]} d5 {[%emt 0:00:08]} 3. Nc3 {[%emt 0:00:05]} dxe4 {[%emt 0:00:07]} 4. Nxe4 {[%emt 0:00:05]} Nf6 {[%emt 0:00:08]} 5. Nxf6+ {[%emt 0:00:06]} exf6 {[%emt 0:00:05]} 6. c3 {[%emt 0:00:04]} Bd6 {[%emt 0:00:08]} 7. Bd3 {[%emt 0:00:05]} O-O {[%emt 0:00:07]} 8. Qc2 {[%emt 0:00:04] Active counter play!} Re8+ {[%emt 0:00:07]} 9. Ne2 {[%emt 0:00:05]} h5 {[%emt 0:00:08]} 10. O-O {[%emt 0:00:06]} h4 {[%emt 0:00:08] White is slightly better.} 11. Bf4 {[%emt 0:00:26]} h3 {[%emt 0:03:14]} 12. Rfe1 {[%emt 0:03:43] Black should prevent Bxd6.} Be6 {[%emt 0:06:11]} (12... Rxe2 13. Qxe2 Be6 14. Bxd6 Qxd6 15. Qh5 $18) (12... hxg2 $1 $11 {might be stronger.} 13. Bh7+ (13. Kxg2 Na6 $11) 13... Kh8) 13. gxh3 {[%emt 0:00:44]} (13. g3 {simplifies} g5 14. Be3 Qd7 15. c4) 13... Bxh3 {[%emt 0:04:46]} 14. Bxd6 {[%emt 0:10:02]} Qxd6 {[%emt 0:00:11]} 15. Nf4 {[%emt 0:00:05]} Be6 {[%emt 0:01:22]} ({Black should play} 15... Bd7 $1 $14 16. Rxe8+ Bxe8) 16. Nxe6 {[%emt 0:00:04]} Rxe6 {[%emt 0:00:42] [#]} 17. Bc4 {[%emt 0:00:04]} (17. Bh7+ $1 $18 Kf8 18. Bf5) 17... Re7 $1 $11 {[%emt 0:02:37]} ({Don't go for} 17... Rxe1+ $2 18. Rxe1 Qd7 19. Qg6 $18) 18. Rxe7 {[%emt 0:02:06]} Qxe7 {[%emt 0:00:08]} 19. Kf1 {[%emt 0:00:16] Threatens to win with Re1.} b5 {[%emt 0:11:08]} 20. Re1 {[%emt 0:02:21]} Qd7 {[%emt 0:01:57]} 21. Bb3 {[%emt 0:04:53] Hoping for Re4.} Qh3+ {[%emt 0:04:54]} (21... Na6 $1 $11 {remains equal.}) 22. Kg1 {[%emt 0:00:14][%cal Re1e8]} Qg4+ {[%emt 0:00:24]} 23. Kf1 {[%emt 0:00:31][%cal Re1e8]} Qh3+ {[%emt 0:00:12] [#]} 24. Kg1 {[%emt 0:00:10]} (24. Ke2 $1 $16 {Strongly threatening Qg6.} Qg4+ 25. Kf1 Qh3+) 24... Qg4+ {[%emt 0:00:08] Weighted Error Value: White=0.31/Black=0.31.  Mistake:       	White=2     	Black=3      Inaccurate:     	White=1     	Black=2      OK:         	White=3     	Black=1      Best:        	---       	Black=3      Strong:       	---       	Black=1} 1/2-1/2

[Event "1000GM NY Winter IM-C 2024"]
[Site "New York"]
[Date "2024.01.13"]
[Round "4.9"]
[White "Bonin, Jay"]
[Black "Venkatesh, Narayan"]
[Result "1-0"]
[ECO "E06"]
[WhiteElo "2166"]
[BlackElo "1965"]
[Annotator "ChessBase"]
[PlyCount "81"]
[EventDate "2024.01.10"]
[EventType "swiss"]
[EventCountry "USA"]
[SourceTitle "playchess.com"]
[Source "ChessBase"]
[SourceQuality "1"]
[TimeControl "5400+30"]

1. d4 {[%emt 0:00:03]} Nf6 {[%emt 0:00:07]} 2. Nf3 {[%emt 0:00:05]} d5 {[%emt 0:00:04]} 3. c4 {[%emt 0:00:06]} e6 {[%emt 0:00:05]} 4. g3 {[%emt 0:00:11]} Be7 {[%emt 0:00:15]} 5. Bg2 {[%emt 0:00:06]} O-O {[%emt 0:00:12]} 6. Nbd2 {[%emt 0:00:06]} c5 {[%emt 0:10:41]} 7. cxd5 {[%emt 1:33:23]} Nxd5 {[%emt 0:06:25]} 8. O-O {[%emt 0:00:00]} b6 {[%emt 0:07:10]} 9. a3 {[%emt 0:00:00]} cxd4 {[%emt 0:03:41]} 10. Nb3 {[%emt 0:00:00]} Bb7 {[%emt 0:01:10]} 11. Nbxd4 {[%emt 0:00:00]} Nc6 {[%emt 0:13:55]} 12. Nxc6 {[%emt 0:00:00]} Bxc6 {[%emt 0:00:05]} 13. Nd4 {[%emt 0:00:00]} Bb7 {[%emt 0:01:20]} 14. Qb3 {[%emt 0:00:00]} Qd7 {[%emt 0:10:00]} 15. Rd1 {[%emt 0:00:00]} Rfd8 {[%emt 0:05:46]} 16. e4 {[%emt 0:00:00]} Nf6 {[%emt 0:05:03]} 17. Bg5 {[%emt 0:00:00]} Qe8 {[%emt 0:11:37]} 18. e5 {[%emt 0:00:00]} Nd5 {[%emt 0:11:56]} 19. Bxe7 {[%emt 0:00:00]} Qxe7 {[%emt 0:00:05]} 20. Nb5 {[%emt 0:00:00]} Bc6 {[%emt 0:03:32]} 21. Nd6 {[%emt 0:00:00]} Qd7 {[%emt 0:03:01]} 22. Rd4 {[%emt 0:00:00]} Rab8 {[%emt 0:02:58]} 23. Rc1 {[%emt 0:00:00]} Ba8 {[%emt 0:00:56]} 24. Rdc4 {[%emt 0:00:00]} Qe7 {[%emt 0:00:59]} 25. f4 {[%emt 0:00:00]} b5 {[%emt 0:01:18]} 26. Rc5 {[%emt 0:00:00]} a6 {[%emt 0:00:05]} 27. f5 {[%emt 0:00:00]} Rf8 {[%emt 0:01:01]} 28. h4 {[%emt 0:00:00]} Rbd8 {[%emt 0:00:27]} 29. Kh2 {[%emt 0:00:00]} g6 {[%emt 0:00:33]} 30. Bxd5 {[%emt 0:00:00]} Bxd5 {[%emt 0:00:11]} 31. Qe3 {[%emt 0:00:00]} gxf5 {[%emt 0:00:48]} 32. Rxd5 {[%emt 0:00:00]} exd5 {[%emt 0:00:30]} 33. Nxf5 {[%emt 0:00:00]} Qe6 {[%emt 0:00:12]} 34. Qg5+ {[%emt 0:00:00]} Qg6 {[%emt 0:00:01]} 35. Ne7+ {[%emt 0:00:00]} Kg7 {[%emt 0:00:02]} 36. Nxg6 {[%emt 0:00:00]} hxg6 {[%emt 0:00:01]} 37. Rc7 {[%emt 0:00:00]} Rde8 {[%emt 0:00:05]} 38. Qf6+ {[%emt 0:00:00]} Kg8 {[%emt 0:00:02]} 39. Rc6 {[%emt 0:00:00]} d4 {[%emt 0:00:29]} 40. h5 {[%emt 0:00:00]} d3 {[%emt 0:00:47]} 41. h6 {[%emt 0:00:00]} 1-0